Cogmind - Beta 16 @@@ ROGUE MODE // 2025.10.22 @ 20:22:56 Player: dp-fld Result: Destroyed by IZ-M5V(R) with Subdweller Laser Performance ------------- Evolutions (0) 0 Regions Visited (3) 600 Robots Destroyed (20) 100 Value Destroyed (346) 346 Prototype IDs (4) 80 Alien Tech Used (0) 0 Bonus (0) 0 TOTAL SCORE: 1126 Bonus ------- None Cogmind --------- Core Integrity 0/250 Matter 300/300 Energy 98/100 System Corruption 0% Temperature Cool (6) Movement Core (50) Location -10/Subcaves Parts ------- > --- POWER (1) -------- (None) > --- PROPULSION (2) --- (None) > --- UTILITY (2) ------ (None) > --- WEAPON (2) ------- (None) > --- INVENTORY (5) ---- Ion Engine Aluminum Leg Aluminum Leg High-capacity Storage Unit Terrain Scanner Peak State ------------ > --- POWER ------------ Ion Engine > --- PROPULSION ------- Light Treads Wheel > --- UTILITY ---------- Large Storage Unit Medium Matter Pod > --- WEAPON ----------- Subdweller Machine Gun Light Cannon > --- INVENTORY -------- Ion Engine Ion Engine Aluminum Leg Aluminum Leg Compact Wheel Scrap Suit Large Storage Unit High-capacity Storage Unit Medium Matter Pod Signal Interpreter Terrain Scanner Scrap Shield Fragment Scrap Shield Fragment [Rating: 10] Favorites ----------- Power Ion Engine Engine Ion Engine Propulsion Light Treads Treads Light Treads Leg Aluminum Leg Wheel Wheel Utility Large Storage Unit Device Terrain Scanner Storage Large Storage Unit Weapon Light Cannon Energy Gun Small Laser Ballistic Gun Subdweller Machine Gun Ballistic Cannon Light Cannon Launcher Grenade Launcher Build | -11 -10 -10 -10 ------- Run | Yrd Mat Min Sub Slots Evolved . | . . . . Power . | . . . . Propulsion . | . . . . Utility . | . . . . Weapon . | . . . . Parts Attached 13 | . 7 . 6 Power 2 | . . . 2 Engine 2 | . . . 2 Core . | . . . . Reactor . | . . . . Propulsion 3 | . 2 . 1 Treads 2 | . 2 . . Leg . | . . . . Wheel 1 | . . . 1 Hover . | . . . . Flight . | . . . . Utility 3 | . 2 . 1 Device 1 | . 1 . . Storage 2 | . 1 . 1 Processor . | . . . . Hackware . | . . . . Protection . | . . . . Artifact . | . . . . Weapon 5 | . 3 . 2 Energy Gun 2 | . 1 . 1 Energy Cannon . | . . . . Ballistic Gun 1 | . . . 1 Ballistic Cannon 1 | . 1 . . Launcher 1 | . 1 . . Special Weapon . | . . . . Impact Weapon . | . . . . Slashing Weapon . | . . . . Piercing Weapon . | . . . . Special Melee Weapon . | . . . . Unidentified Prototypes . | . . . . Parts Lost 6 | . . . 6 Power 2 | . . . 2 Propulsion 1 | . . . 1 Utility . | . . . . Weapon 3 | . . . 3 Highest Loss Streak 3 | . . . 3 To Critical Strikes . | . . . . Average Backups 13 | 6 13 14 12 Power 2 | 1 2 3 2 Propulsion 3 | 4 4 4 3 Utility 5 | . 5 6 5 Weapon 1 | 1 1 1 . Tool/Special . | . . . . Unused Backups 18 | . 3 2 13 Power 4 | . 2 . 2 Propulsion 4 | . . . 4 Utility 8 | . 1 1 6 Weapon 2 | . . 1 1 Tool/Special . | . . . . Average Slot Usage (%) 98 | . 99 100 97 Engine 13 | . 14 14 13 Treads 25 | . 26 28 19 Wheel 1 | . . . 8 Device 10 | . 13 14 . Storage 17 | . 14 14 27 Energy Gun 7 | . 16 . . Ballistic Gun 1 | . . . 7 Ballistic Cannon 12 | . 10 14 13 Launcher 5 | . . 14 5 Peak Build Rating 10 | 6 8 9 10 Average Rating 8 | 6 7 8 9 On Entrance 7 | 6 6 8 9 Avg Prop Armor Cover (%) 11 | . . . 11 Naked Turns 4 | . . . 4 Heaviest Build 34 | 13 32 32 34 Greatest Support 40 | 20 40 40 40 Greatest Overweight (x) 3 | . . . 3 Average Overweight (x) . | . . . 1 Largest Inventory Capacity 15 | 8 15 15 15 Average Capacity 14 | 8 14 15 14 Most Carried 15 | 6 15 15 15 Average Carried 14 | 6 13 14 14 Final Capacity 15 | 8 15 15 5 Final Carried 15 | 6 15 15 5 Class Distribution -------------------- 100% | Mutant Dominant Class ---------------- Mutant | -10/Materials Mutant | -10/Mines Mutant | -10/Subcaves Resources | -11 -10 -10 -10 ----------- Run | Yrd Mat Min Sub Matter Collected 820 | 200 462 71 87 Remotely . | . . . . Salvage Created 271 | . 193 13 65 Parts 29 | . 22 4 3 Haulers Intercepted 2 | . 2 . . Recyclers Shooed . | . . . . Parts Field Recycled . | . . . . Retrieved Matter . | . . . . Parts Self-Destructed 10 | . . . 10 Prevented . | . . . . Parts Restored . | . . . . Kills | -11 -10 -10 -10 ------- Run | Yrd Mat Min Sub Combat Hostiles Destroyed 18 | . 10 3 5 Guns 2 | . . . 2 Cannons 14 | . 10 1 3 AOE 2 | . . 2 . Classes Destroyed 4 | . 3 . 1 Hauler 2 | . 2 . . Swarmer 12 | . 7 3 2 Grunt 3 | . 3 . . Subdweller 3 | . . . 3 Best Kill Streak 5 | . 5 3 2 Combat Bots Only 5 | . 5 3 2 Max Kills in Single Turn 2 | . 1 2 1 Gunslinging . | . . . . Exploded 2 | . . 2 . Melee . | . . . . Uniques/NPCs Destroyed . | . . . . Combat | -11 -10 -10 -10 -------- Run | Yrd Mat Min Sub Hostile Shots Fired 102 | . 53 4 45 Missed 27 | . 13 1 13 Hits 75 | . 40 3 32 Projectile 75 | . 40 3 32 Critical Strikes 1 | . . . 1 Damage Taken 1117 | . 327 68 722 Core 251 | . 63 . 188 Absorbed by Shields . | . . . . Regen/Repaired (Parts) 158 | . 158 . . Core Remaining (%) 100 | 100 . . . Volleys Fired 81 | . 58 4 19 Largest 2 | . 2 1 2 Hottest 90 | . 80 30 90 Shots Fired 101 | . 68 4 29 Gun 30 | . 18 . 12 Cannon 68 | . 50 2 16 Launcher 3 | . . 2 1 Special . | . . . . Kinetic 78 | . 50 2 26 Thermal 20 | . 18 . 2 Explosive 3 | . . 2 1 Electromagnetic . | . . . . Robot Hit Streak 22 | . 6 1 22 Robot Miss Streak 4 | . 4 3 2 Penetration Max . | . . . . Secondary Targets . | . . . . Shots Hit Robots 68 | . 41 2 25 Core Hits 25 | . 13 4 8 Critical Kills . | . . . . Critical Parts Destroyed . | . . . . Critical Strikes 3 | . . . 3 Blast 3 | . . . 3 Melee Attacks . | . . . . Impact . | . . . . Slashing . | . . . . Piercing . | . . . . Sneak Attacks . | . . . . Combat Hostiles . | . . . . Follow-up Attacks . | . . . . Damage Inflicted 1326 | . 632 133 561 Guns 346 | . 133 . 213 Cannons 756 | . 499 18 239 Explosions 207 | . . 113 94 Melee . | . . . . Ramming 17 | . . 2 15 Kinetic 950 | . 499 18 433 Thermal 152 | . 133 . 19 Explosive 207 | . . 113 94 Electromagnetic . | . . . . Impact . | . . . . Slashing . | . . . . Piercing . | . . . . Highest Corruption . | . . . . Average Corruption . | . . . . Corruption Purged . | . . . . Corruption Blocked . | . . . . Overload Shots . | . . . . Overflow Damage 2 | . . . 2 Projectiles . | . . . . Explosions 2 | . . . 2 Melee . | . . . . Knockbacks 9 | . 7 . 2 Impact . | . . . . Kinetic 8 | . 6 . 2 Secondary 1 | . 1 . . Self-Inflicted Damage 78 | . . 48 30 Shots 3 | . . 2 1 Rammed 2 | . . 1 1 Targets Rammed 2 | . . 1 1 Kicked . | . . . . Crushed . | . . . . Highest Temperature 54 | . 54 . . Average Temperature 17 | . 17 . . Received Heat Transfer 87 | . 30 . 57 Siege Activations . | . . . . Martial Activations . | . . . . Shielding Activations . | . . . . Robots Disrupted . | . . . . Combat Hostiles . | . . . . Robots Corrupted . | . . . . Combat Hostiles . | . . . . Parts Fried . | . . . . Impact Corruptions . | . . . . Robots Melted . | . . . . Combat Hostiles . | . . . . Parts Melted . | . . . . Heat Transferred 325 | . 300 . 25 Parts Sabotaged . | . . . . Parts Stolen . | . . . . Parts Stripped . | . . . . Power Chain Reactions . | . . . . Alert | -11 -10 -10 -10 ------- Run | Yrd Mat Min Sub Maximum Alert Level . | . . . . Low Security (%) 100 | 100 100 100 . Level 1 . | . . . . Level 2 . | . . . . Level 3 . | . . . . Level 4 . | . . . . Level 5 . | . . . . High Security . | . . . . Max Security . | . . . . Peak Influence 112 | . 112 84 . Initial . | . . . . Average 17 | . 25 7 . Influence Increases 399 | . 275 84 40 Destroy 0b10 Robot/C 300 | . 200 60 40 Destroy 0b10 Robot/NC 10 | . 10 . . Destroy Leader 64 | . 54 10 . Successful Hack 11 | . 11 . . Destroy Structure 14 | . . 14 . Influence Decreases 399 | . 275 84 40 Time Decay 391 | . 275 84 32 Lost Part 8 | . . . 8 Squads Dispatched 3 | . 3 . . Investigation 2 | . 2 . . Extermination . | . . . . Reinforcement 1 | . 1 . . Assault . | . . . . Garrison . | . . . . Intercept . | . . . . Searches Triggered . | . . . . Construction Impeded . | . . . . Haulers Reinforced . | . . . . Active Scanning Responses . | . . . . Cargo Convoy Interrupts . | . . . . Stealth | -11 -10 -10 -10 --------- Run | Yrd Mat Min Sub Distress Signals 3 | . 3 . . Communications Jammed . | . . . . Distress Signals . | . . . . Times Spotted 31 | . 19 3 9 Peak Tracking Total 5 | . 5 3 4 Tactical Retreats . | . . . . Traps | -11 -10 -10 -10 ------- Run | Yrd Mat Min Sub Traps Triggered 2 | . . . 2 Indirectly . | . . . . Trap Hack Attempts . | . . . . Triggered . | . . . . Disarmed . | . . . . Reprogrammed . | . . . . Reused 1 | . . . 1 Traps Extracted . | . . . . Installed 1 | . . . 1 Triggered 1 | . . . 1 Most Traps Carried 1 | . . . 1 Machines | -11 -10 -10 -10 ---------- Run | Yrd Mat Min Sub Machines Disabled . | . . . . Max in Single Turn . | . . . . Machines Repaired . | . . . . Machines Dismantled . | . . . . Machines Sabotaged . | . . . . Overloaded Fab Kills . | . . . . Hacking | -11 -10 -10 -10 --------- Run | Yrd Mat Min Sub Machines Accessed 8 | . 8 . . Terminals 7 | . 7 . . Fabricators . | . . . . Repair Stations 1 | . 1 . . Recycling Units . | . . . . Scanalyzers . | . . . . Garrison Access . | . . . . Total Hacks 24 | . 24 . . Successful 14 | . 14 . . Failed 9 | . 9 . . Catastrophic 2 | . 2 . . Database Lockouts 1 | . 1 . . Manual 5 | . 5 . . Terminals 17 | . 17 . . Fabricators . | . . . . Repair Stations 7 | . 7 . . Recycling Units . | . . . . Scanalyzers . | . . . . Garrison Access . | . . . . Terminal Hacks 7 | . 7 . . Record 1 | . 1 . . Prototype ID Bank 3 | . 3 . . Alert Level 1 | . 1 . . Locate Traps 1 | . 1 . . Hauler Manifests 1 | . 1 . . Fabricator Hacks . | . . . . Repair Station Hacks 7 | . 7 . . Scan Component 4 | . 4 . . Repair 3 | . 3 . . Recycling Unit Hacks . | . . . . Scanalyzer . | . . . . Garrison Access Hacks . | . . . . Unauthorized Hacks . | . . . . Terminals . | . . . . Fabricators . | . . . . Repair Stations . | . . . . Recycling Units . | . . . . Scanalyzers . | . . . . Garrison Access . | . . . . Data Cores Recovered . | . . . . Used . | . . . . Hacking Detections 8 | . 8 . . Full Trace Events . | . . . . Feedback Events . | . . . . Feedback Blocked . | . . . . Robot Schematics Acquired . | . . . . Robots Built . | . . . . Authchips . | . . . . Time . | . . . . Total Robot Build Rating . | . . . . Part Schematics Acquired . | . . . . Parts Built . | . . . . Authchips . | . . . . Time . | . . . . Total Part Build Rating . | . . . . Part Studies Acquired . | . . . . Parts Repaired 3 | . 3 . . Time 78 | . 78 . . Parts Recycled . | . . . . Recycled Matter . | . . . . Retrieved Matter . | . . . . Retrieved Components . | . . . . Parts Scanalyzed . | . . . . Part Schematics Acquired . | . . . . Parts Damaged . | . . . . Bothacking | -11 -10 -10 -10 ------------ Run | Yrd Mat Min Sub Used RIF Installer . | . . . . Robots Hacked . | . . . . Non-combat . | . . . . Combat . | . . . . Robot Hacks Applied . | . . . . Relay Couplers Released . | . . . . Fabnet Peak Effective % . | . . . . Robots Rewired . | . . . . Allies Hacked . | . . . . Hacks Repelled . | . . . . Allies | -11 -10 -10 -10 -------- Run | Yrd Mat Min Sub Total Allies . | . . . . Largest Group . | . . . . Highest-Rated Group . | . . . . Highest-Rated Ally . | . . . . Total Orders . | . . . . Ally Attacks . | . . . . Total Damage . | . . . . Kills . | . . . . Allies Corrupted . | . . . . Allies Melted . | . . . . Intel | -11 -10 -10 -10 ------- Run | Yrd Mat Min Sub Active Infowar (turns) 2221 | . 1247 959 15 Terrain 2221 | . 1247 959 15 Robot Analysis Total . | . . . . Derelict Logs Recovered 2 | . . 2 . Drone Launches . | . . . . Drone Recoveries . | . . . . Exploration | -11 -10 -10 -10 ------------- Run | Yrd Mat Min Sub Turns Passed 2920 | 12 1279 959 670 Spaces Moved 1680 | 11 652 591 426 Core 7 | . . . 7 Treads 1365 | . 623 591 151 Legs 40 | 11 29 . . Wheels 268 | . . . 268 Hover . | . . . . Flight . | . . . . Fastest Speed 50 | 120 120 160 50 Average Speed 152 | 120 158 160 136 Slowest Speed 240 | 120 160 160 240 Overloaded Moves . | . . . . Propulsion Burnouts . | . . . . Robots Hopped . | . . . . Potential Cave-ins . | . . . . Cave-ins Triggered . | . . . . Exploration Rate (%) 54 | 2 93 99 24 Regions Visited 3 Branch Regions 2 Pre-discovered Areas 2 | . . 2 . Known Exits Taken . | . . . . Unknown Exits Taken 3 | 1 1 1 . Scrap Searched 1 | . . 1 . Spaces Dug . | . . . . Terrain Destroyed 22 | . . 17 5 Melee . | . . . . Projectile . | . . . . AOE 22 | . . 17 5 Terrain Rammed . | . . . . Walls Destroyed . | . . . . Machines Disabled . | . . . . Actions | -11 -10 -10 -10 --------- Run | Yrd Mat Min Sub Total 1926 | 10 830 601 485 Wait 117 | . 93 3 21 Move 1677 | 10 651 590 426 Hop . | . . . . Pick Up 21 | . 13 1 7 Fast Attach 3 | . 3 . . Attach 6 | . 1 . 5 Detach . | . . . . Swap 8 | . 7 . 1 Drop 10 | . 4 2 4 Fire 81 | . 58 4 19 Melee . | . . . . Ram 1 | . . . 1 Kick . | . . . . Crush 1 | . . 1 . Escape Stasis . | . . . . Rewire . | . . . . Trap 1 | . . . 1 Miscellaneous . | . . . . Route ------- -11/Scrapyard -10/Materials (discovered 5 exits: [*Mat x3] / [*Min x2]) -10/Mines (discovered 4 exits: [*Mat x2] / [*Exi] / [*Sub]) -10/Subcaves History --------- Turn | Location | Event 1 | -11/Scrapyard | Discovered new exit (range 1) 13 | -11/Scrapyard | Entered Materials 14 | -10/Materials | Met a group of wandering Federalists 241 | -10/Materials | Discovered new exit (range 3) 306 | -10/Materials | Build established: Mutant 581 | -10/Materials | Discovered new exit (range 12) 689 | -10/Materials | Discovered new exit (range 12) 811 | -10/Materials | Discovered new exit (range 15) 1000 | -10/Materials | Discovered new exit (range 6) 1079 | -10/Materials | Central database locked down 1191 | -10/Materials | Repaired Lgt. Cannon 1218 | -10/Materials | Repaired Terrain Scanner 1246 | -10/Materials | Repaired Lgt. Treads 1292 | -10/Materials | Entered Mines 1376 | -10/Mines | Learned Materials terminal intel 1424 | -10/Mines | Learned location of Zion (-6) 1425 | -10/Mines | Discovered new exit (range 8) 1647 | -10/Mines | Found a Scrap Suit stashed away for nefarious purposes 1652 | -10/Mines | Found Scrap Suit 1677 | -10/Mines | Discovered new exit (range 15) 1733 | -10/Mines | Deemed a non-threat by the Exiles lab entrance 1733 | -10/Mines | Discovered new exit (range 5) 1967 | -10/Mines | Learned location of Storage (-7) 2233 | -10/Mines | Discovered new exit (range 10) 2251 | -10/Mines | Entered Subcaves 2666 | -10/Subcaves | Shifting Twisted Machinery released Sub. Laser 2668 | -10/Subcaves | Shifting Twisted Machinery released Piercing Trap 2751 | -10/Subcaves | Ambushed by Subdweller buried in earth 2842 | -10/Subcaves | Core integrity fell below 50% 2917 | -10/Subcaves | Released all parts (6) 2920 | -10/Subcaves | Core integrity fell below 20% 2921 | -10/Subcaves | Destroyed by IZ-M5V(R) with Subdweller Laser Last Messages --------------- (Impale). 02854_ Subatomizers dissect the Sub. Power Source, destroying it. 02884_ V8-F1V(R): "WEHOME!" 02895_ Ion Engine destroyed. 02897_ Y-45 Defender destroyed. 02907_ IZ-M5V(R) Disposable Heat Sink blasted off. 02909_ Lgt. Cannon destroyed. 02916_ Sub. Machine Gun destroyed. 02917_ Released Ion Engine. 02917_ Released Med. Matter Pod. 02917_ Released Lrg. Storage Unit. 02917_ Released Lgt. Treads. 02917_ Released Wheel. 02917_ Released Sub. Laser. [Achievement: Live, Flee, And Rebuild] 02919_ Slammed into V8-F1V(R). 02920_ IZ-M5V(R) affixes Scrap Shield Fragment to Scrap Shield. Map ----- +----------------------------------------------------+ | ????????????????????????????# ## ## # | | ????????????????????????????# ?## ### | | ????????????????????????????## #?## & ##?# | | ?????????????????????????????###??# & ####??# | | ??????????????????????????????????# ##?????# | | ???????????????????????????????##?# #??????# | | ?????????????????????????????## #### ###????? | | ????????????????####????###### #?## #????? | | ??????????????### ##?### ???## # #????? | | ?#???????###### ### #?????#### #????? | | ?# #????# ## ####?????# #????? | | ?# #### ###???# ##????? | | ?# ##??# #????? | | ?# #?## ##????? | | ? #### ### #????? | | ? % " " ##??### ##????? | | ???# % """ """ ##?????# ## #????? | | ????? ##"""" """ "######??????#### # # # #???? | | ????????##"" " #####?????????############ # #??? | | ?????????## "## ###???#### #?????????### #?? | | ??????????#### ! " #####&== ##??????????? #?? | | ?????????????# " "" ! % =!*!= #???????????? ?? | | ????????????## " """ ! !&!![ ##????????????? ? | | ???????????## " ""% ##########????##?????????# | | ???????????# "" "" # ### #????????# #?????#??? | | ???????????# "" """ @ ###???????# ##?## ??? | | ?????????? "" "" < R #?###????# ### #??? | | ????????? "" ## "" ###